fUSD/lending_fUSD_20241031
["ID","MTS","AMOUNT","RATE_DAILY","PERIOD"]
[341074878,1730338238100,-150.0,0.00042015,7]
[341074879,1730338238110,-230.02,0.00042034,2]
[341074880,1730338238120,-205.05,0.00042038,2]
[341074881,1730338238129,-231.93,0.0004218,63]
[341074882,1730338238139,-157.83,0.00042253,120]
[341074883,1730338238149,-692.3283,0.0004228,2]
[341074884,1730338238159,-1000.0,0.0004228,2]
[341074885,1730338238170,-13801.6944874,0.0004228,2]
[341074886,1730338240022,-161.20555425,0.00032877,2]
[341074887,1730338240032,-607.58444575,0.0004228,2]
[341074888,1730338240176,-3921.10659425,0.0004228,2]
[341074889,1730338240194,-2159.89165029,0.0004228,2]
[341074890,1730338240342,-2016.5,0.0004228,2]
[341074891,1730338240354,-684.76604509,0.0004228,2]
[341074892,1730338243018,-717.4988695,0.0004228,2]
[341074893,1730338243135,-1014.02598254,0.0004228,2]
[341074894,1730338243159,-0.11402568,0.0004228,2]
[341074895,1730338243171,-12169.19787812,0.0004228,2]
[341074896,1730338245922,-32027.77262138,0.0004228,2]
[341074897,1730338245934,-3295.61208779,0.0004228,15]
[341074898,1730338246060,-1688.15985782,0.0004228,15]
[341074899,1730338246069,-212.95598282,0.0004228,28]
[341074900,1730338246079,-4602.0758955,0.00042379,2]
[341074901,1730338246202,-5760.63159934,0.00042379,2]
[341074902,1730338246212,-66658.7940006,0.0004238,2]
[341074903,1730338246224,-233316.71901734,0.0004238,2]
[341074904,1730338246235,-74306.15411923,0.0004238,2]
[341074905,1730338246244,-6712.22508951,0.0004238,30]
[341074906,1730338246253,-15580.5268987,0.0004238,2]
[341074907,1730338246263,-5909.3335996,0.0004239,2]
[341074908,1730338246272,-5886.5586529,0.00042419,2]
[341074909,1730338246281,-200.0,0.00042448,2]
[341074910,1730338246291,-545.46,0.0004253,2]
[341074911,1730338246300,-150.0,0.00042808,2]
[341074912,1730338246309,-407.21826142,0.00043,2]
[341074913,1730338246318,-212.13409964,0.00043179,15]
[341074914,1730338246327,-23385.76246987,0.00043607,2]
[341074915,1730338246336,-200.0,0.0004375,2]
[341074916,1730338246346,-163.38245856,0.00043751,2]
[341074917,1730338246355,-261.461917,0.00043753,14]
[341074918,1730338246364,-7711.57007442,0.00043753,2]
[341074919,1730338246374,-200.0,0.00043755,2]
[341074920,1730338246383,-772.94204769,0.00043759,2]
[341074921,1730338246392,-7711.57007442,0.00043761,2]
[341074922,1730338246404,-7711.57007442,0.00043768,2]
[341074923,1730338246413,-200.0,0.000438,2]
[341074924,1730338246423,-200.0,0.00043807,2]
[341074925,1730338246433,-200.0,0.00043809,2]
[341074926,1730338246442,-772.94204769,0.00043822,2]
[341074927,1730338246452,-200.0,0.00043825,2]
[341074928,1730338246462,-200.0,0.00043856,2]
[341074929,1730338246472,-7711.57007442,0.00043864,2]
[341074930,1730338246484,-772.94204769,0.00043869,2]
[341074931,1730338246494,-200.0,0.00043917,2]
[341074932,1730338246503,-150.0,0.00043922,2]
[341074933,1730338246513,-7711.57007442,0.00043922,2]
[341074934,1730338246522,-772.94204769,0.00043938,2]
[341074935,1730338246532,-200.0,0.00043946,2]
[341074936,1730338246542,-772.94204769,0.00043948,2]
[341074937,1730338246553,-200.0,0.00043952,2]
[341074938,1730338246562,-772.94204769,0.00043959,2]
[341074939,1730338246572,-7711.57007442,0.00043988,2]
[341074940,1730338246583,-238.33,0.00044,2]
[341074941,1730338246592,-300.0,0.00044,120]
[341074942,1730338246602,-436.4665,0.00044124,14]
[341074943,1730338246611,-700.0,0.00044127,16]
[341074944,1730338246620,-700.0,0.00044127,16]
[341074945,1730338246630,-700.0,0.00044127,16]
[341074946,1730338246640,-700.0,0.00044127,16]
[341074947,1730338246649,-700.0,0.00044127,16]
[341074948,1730338246658,-230.02,0.00044136,2]
[341074949,1730338246667,-4022.46301526,0.00044179,2]
[341074950,1730338246675,-327.61443266,0.00044179,30]
[341074951,1730338246684,-504.91514796,0.00044179,30]
[341074952,1730338246693,-794.369999,0.00044179,2]
[341074953,1730338246702,-500.0,0.00044179,30]
[341074954,1730338246712,-370.14688246,0.00044179,30]
[341074955,1730338246721,-500.0,0.00044179,30]
[341074956,1730338246730,-500.0,0.00044179,30]
[341074957,1730338246739,-500.0,0.00044179,120]
[341074958,1730338246748,-249.4503,0.00044179,120]
[341074959,1730338246757,-247.5521,0.00044179,30]
[341074960,1730338246766,-160.55800253,0.00044179,30]
[341074961,1730338246775,-356.07009139,0.00044179,30]
[341074962,1730338246784,-154.67884777,0.00044179,30]
[341074963,1730338246793,-204.71564108,0.00044179,30]
[341074964,1730338246802,-157.03724163,0.00044179,30]
[341074965,1730338246812,-286.90093412,0.00044179,30]
[341074966,1730338246820,-167.14700228,0.00044179,30]
[341074967,1730338246829,-169.0,0.00044179,120]
[341074968,1730338246838,-197.65244499,0.00044179,30]
[341074969,1730338246847,-166.42487493,0.00044179,21]
[341074970,1730338246857,-255.56833168,0.00044179,120]
[341074971,1730338246867,-560.08575391,0.00044179,30]
[341074972,1730338246877,-222.28600707,0.00044179,30]
[341074973,1730338246886,-500.0,0.00044229,2]
[341074974,1730338246895,-999.6270516,0.000444,120]
[341074975,1730338246904,-545.46,0.00044794,2]
[341074976,1730338246914,-150.0,0.00045036,2]
[341074977,1730338246923,-4983.77194555,0.00045093,15]
[341074978,1730338246932,-212.95598277,0.00045154,28]
[341074979,1730338246942,-638.319,0.00045226,2]
[341074980,1730338246951,-300.0,0.00046,120]
[341074981,1730338246960,-155.27,0.00046122,2]
[341074982,1730338246969,-155.27,0.00046141,2]
[341074983,1730338246978,-150.0,0.00046149,2]
[341074984,1730338246987,-155.27,0.0004616,2]
[341074985,1730338246996,-155.27,0.00046179,2]
[341074986,1730338247005,-155.27,0.00046199,2]
[341074987,1730338247014,-715.0,0.000462,7]
[341074988,1730338247022,-155.27,0.00046218,2]
[341074989,1730338247032,-155.27,0.00046237,2]
[341074990,1730338247041,-230.02,0.00046238,2]
[341074991,1730338247049,-155.27,0.00046256,2]
[341074992,1730338247058,-155.27,0.00046275,2]
[341074993,1730338247067,-155.27,0.00046295,2]
[341074994,1730338247076,-155.27,0.00046314,2]
[341074995,1730338247086,-155.27,0.00046333,2]
[341074996,1730338247095,-155.27,0.00046352,2]
[341074997,1730338247104,-350.62201061,0.00046381,7]
[341074998,1730338247113,-161.26,0.00046396,2]
[341074999,1730338247123,-274.00883572,0.00046456,30]
[341075000,1730338247132,-185.25,0.0004692,2]
[341075001,1730338247140,-545.46,0.00047058,2]
[341075002,1730338247149,-800.0,0.0004725,2]
[341075003,1730338247158,-168.12,0.00047252,2]
[341075004,1730338247167,-150.0,0.00047263,2]
[341075005,1730338247176,-200.0,0.00047754,2]
[341075006,1730338247185,-4983.77194555,0.00047907,15]
[341075007,1730338247194,-151.0,0.00047929,7]
[341075008,1730338247204,-300.0,0.00048,120]
[341075009,1730338247213,-212.95598277,0.00048029,28]
[341075010,1730338247222,-230.02,0.00048339,2]
[341075011,1730338247231,-150.0,0.00048377,2]
[341075012,1730338247240,-425.23519374,0.00049,30]
[341075013,1730338247250,-185.14,0.00049,45]
[341075014,1730338247259,-436.4665,0.00049252,14]
[341075015,1730338247268,-157.83,0.00049267,120]
[341075016,1730338247278,-3000.0,0.000493,2]
[341075017,1730338247288,-700.0,0.00049315,26]
[341075018,1730338247297,-545.46,0.00049322,2]
[341075019,1730338247306,-10853.0,0.000494,5]
[341075020,1730338247316,-715.02269051,0.00049452,30]
[341075021,1730338247325,-150.0,0.00049491,2]
[341075022,1730338247335,-168.12,0.00049852,2]
[341075023,1730338247345,-810.0,0.0005,19]
[341075024,1730338247355,-320.0,0.0005,120]
[341075025,1730338247364,-300.0,0.0005,120]
[341075026,1730338247373,-1114.34,0.0005,120]
[341075027,1730338247383,-399.89,0.0005,120]
[341075028,1730338247392,-230.02,0.00050441,2]
[341075029,1730338247405,-150.0,0.00050604,2]
[341075030,1730338247414,-4983.77194555,0.0005072,15]
[341075031,1730338247423,-480.57308205,0.00050738,120]
[341075032,1730338247432,-212.95598277,0.00050903,28]
[341075033,1730338247442,-2579.98284656,0.000515,120]
[341075034,1730338247452,-545.46,0.00051585,2]
[341075035,1730338247461,-150.0,0.00051718,2]
[341075036,1730338247471,-185.25,0.00051898,2]
[341075037,1730338247480,-300.0,0.00052,120]
[341075038,1730338247489,-939.0,0.00052055,30]
[341075039,1730338247499,-3000.0,0.000521,2]
[341075040,1730338247508,-199.0,0.00052328,7]
[341075041,1730338247518,-168.12,0.00052452,2]
[341075042,1730338247527,-800.0,0.00052499,120]
[341075043,1730338247536,-36180.0911189,0.000528,120]
[341075044,1730338247546,-151.0,0.000528,7]
[341075045,1730338247555,-150.0,0.00052832,2]
[341075046,1730338247564,-371.0,0.00053,120]
[341075047,1730338247574,-200.0,0.0005306,120]
[341075048,1730338247584,-176.11698715,0.000535,33]
[341075049,1730338247594,-4983.77194555,0.00053533,15]
[341075050,1730338247603,-229.86298129,0.00053599,120]
[341075051,1730338247613,-102459.4758004,0.000536,120]
[341075052,1730338247623,-28144.18962887,0.000536,120]
[341075053,1730338247632,-151.0,0.000536,7]
[341075054,1730338247642,-200.0,0.000536,19]
[341075055,1730338247651,-500.0,0.000537,19]
[341075056,1730338247660,-212.95598277,0.00053777,28]
[341075057,1730338247669,-700.0,0.000538,19]
[341075058,1730338247679,-545.46,0.00053849,2]
[341075059,1730338247689,-151.0,0.000539,7]
[341075060,1730338247699,-55555.0,0.000539,120]
[341075061,1730338247708,-1000.0,0.000539,19]
[341075062,1730338247717,-205.36943054,0.00053941,7]
[341075063,1730338247726,-150.0,0.00053946,2]
[341075064,1730338247736,-2812.59112096,0.00053947,64]
[341075065,1730338247745,-163.38245856,0.0005399,2]
[341075066,1730338247754,-1000.0,0.00053999,120]
[341075067,1730338247763,-999.0,0.00053999,120]
[341075068,1730338247773,-645587.87824601,0.00054,120]
[341075069,1730338247782,-381535.85311071,0.00054,120]
[341075070,1730338247795,-7405.91550632,0.00054,120]
[341075074,1730338662234,550.0,0.00015,2]
[341075076,1730338792220,157.38,0.00015342,2]
[341075078,1730339190181,-151.37885965,0.00017589,2]
[341075079,1730339190201,-300.0,0.00019725,2]
[341075089,1730339341277,300.0,0.00019725,2]
[341075101,1730339379131,159.94,0.00015342,2]
[341075103,1730339431957,-410.44518981,0.0002402,2]
[341075104,1730339431966,-161.0,0.0002402,2]
[341075105,1730339431975,-504.2843,0.0004228,2]
[341075108,1730339431984,-909.1321,0.0004228,2]
[341075110,1730339431993,-191.05812442,0.0004312,120]
[341075111,1730339432006,-203.13987849,0.0004312,2]
[341075112,1730339432015,-4345.72662242,0.0004312,2]
[341075113,1730339432026,-300.0,0.0004312,2]
[341075115,1730339432130,-3876.75666404,0.0004312,2]
[341075116,1730339432141,-9603.33647081,0.0004312,2]
[341075117,1730339432150,-223.61,0.0004322,30]
[341075118,1730339432159,-150.99,0.0004322,2]
[341075119,1730339432168,-738.89,0.0004322,2]
[341075120,1730339432177,-180.76,0.0004322,40]
[341075121,1730339432186,-197.218,0.00043647,120]
[341075122,1730339432195,-197.219,0.00043647,120]
[341075123,1730339432204,-197.218,0.00043647,120]
[341075124,1730339432213,-230.0,0.00044075,4]
[341075125,1730339432223,-177.08103841,0.00044077,60]
[341075126,1730339432232,-284.7278403,0.00044077,30]
[341075127,1730339432243,-176.80552759,0.00044077,30]
[341075128,1730339432254,-500.0,0.00044077,120]
[341075129,1730339432263,-500.0,0.00044077,120]
[341075130,1730339432272,-500.0,0.00044077,120]
[341075131,1730339432281,-500.0,0.00044077,120]
[341075132,1730339432291,-500.0,0.00044077,120]
[341075133,1730339432301,-304.65802706,0.00044077,120]
[341075134,1730339432310,-166.51129496,0.00044077,120]
[341075135,1730339432319,-254.99468557,0.00044077,120]
[341075136,1730339432328,-429.691,0.00044077,120]
[341075137,1730339432338,-215.775851,0.00044077,120]
[341075138,1730339432347,-332.29552093,0.00044077,120]
[341075139,1730339432356,-150.61934288,0.00044077,120]
[341075140,1730339432365,-202.47083464,0.00044077,120]
[341075141,1730339432373,-226.65359257,0.00044077,120]
[341075142,1730339432384,-205.01759483,0.00044077,120]
[341075143,1730339432393,-277.79431623,0.00044077,120]
[341075144,1730339432402,-356.0022,0.00044077,120]
[341075145,1730339432411,-199.6602037,0.00044077,120]
[341075146,1730339432420,-217.67822727,0.00044077,120]
[341075147,1730339432430,-558.23360298,0.00044077,120]
[341075149,1730339432439,-500.0,0.00044077,120]
[341075151,1730339432448,-500.0,0.00044077,120]
[341075153,1730339432457,-169.99993625,0.00044077,120]
[341075155,1730339432467,-152.77519734,0.00044077,120]
[341075157,1730339432476,-184.10068805,0.00044077,120]
[341075159,1730339432485,-161.330635,0.00044077,120]
[341075161,1730339432493,-500.0,0.00044077,120]
[341075162,1730339432504,-319.33188568,0.00044077,120]
[341075164,1730339432513,-168.05494173,0.00044077,120]
[341075167,1730339432524,-414.99315502,0.00044077,120]
[341075169,1730339432533,-150.0,0.000441,2]
[341075171,1730339432543,-437.183,0.000441,69]
[341075173,1730339432552,-700.0,0.00044137,16]
[341075174,1730339432561,-700.0,0.00044137,16]
[341075176,1730339432571,-700.0,0.00044137,16]
[341075178,1730339432582,-700.0,0.00044137,16]
[341075181,1730339432593,-700.0,0.00044137,16]
[341075183,1730339432602,-400.99966178,0.00045164,2]
[341075185,1730339432611,-201.75709653,0.00045164,10]
[341075187,1730339432621,-157.38,0.00045753,2]
[341075189,1730339432630,-431.59,0.000463,7]
[341075191,1730339432639,-548.27,0.00046317,2]
[341075193,1730339432648,-2212.056,0.00046397,2]
[341075195,1730339432658,-200.0,0.00047791,2]
[341075197,1730339432667,-250.0,0.00047806,120]
[341075199,1730339432677,-150.0,0.00047822,7]
[341075201,1730339432686,-151.01,0.0004787,2]
[341075203,1730339432695,-320.0,0.00047876,2]
[341075205,1730339432704,-154.43,0.00047887,2]
[341075207,1730339432714,-162.17,0.00047948,2]
[341075209,1730339432723,-345.5,0.0004796,2]
[341075211,1730339432733,-280.2,0.00047961,120]
[341075212,1730339432742,-2000.0,0.00048063,2]
[341075214,1730339432752,-191.15,0.00048122,5]
[341075216,1730339432761,-174.2,0.00048132,2]
[341075218,1730339432770,-500.0,0.00048148,2]
[341075220,1730339432779,-2751.0,0.00048169,120]
[341075222,1730339432788,-728.06,0.00048179,2]
[341075224,1730339432797,-200.0,0.00048182,2]
[341075226,1730339432809,-1899.46,0.00048193,2]
[341075228,1730339432818,-543.46,0.00048197,2]
[341075230,1730339432829,-14961.44,0.00048221,2]
[341075232,1730339432839,-150.0,0.00048221,2]
[341075234,1730339432848,-23900.0,0.00048222,2]
[341075236,1730339432857,-157.83,0.00048227,120]
[341075238,1730339432866,-500.0,0.00048234,2]
[341075240,1730339432875,-250.0,0.00048262,120]
[341075242,1730339432884,-169.07,0.00048348,45]
[341075244,1730339432899,-548.27,0.00048581,2]
[341075246,1730339432909,-366.5,0.00048627,7]
[341075248,1730339432917,-680.0,0.00048992,2]
[341075250,1730339432926,-3000.0,0.000493,2]
[341075252,1730339432936,-700.0,0.00049315,26]
[341075254,1730339432945,-2206.0,0.00049397,2]
[341075256,1730339432955,-231.47216596,0.00049554,30]
[341075258,1730339432963,-182.04,0.00049684,120]
[341075259,1730339432972,-346.0,0.0005,19]
[341075260,1730339432982,-154.43,0.00050317,2]
[341075261,1730339432991,-174.2,0.00050539,2]
[341075262,1730339433001,-548.27,0.00050845,2]
[341075263,1730339433011,-152.0,0.0005172,3]
[341075264,1730339433020,-424.0,0.00051872,30]
[341075265,1730339433030,-939.0,0.00052055,30]
[341075266,1730339433039,-3000.0,0.000521,2]
[341075267,1730339433048,-8291.30795029,0.0005232,30]
[341075268,1730339433060,-17499.9999993,0.0005232,30]
[341075269,1730339433071,-3713.66672654,0.0005232,30]
[341075270,1730339433106,-20495.02532387,0.0005232,30]
[341075271,1730339433115,-2206.0,0.00052397,120]
[341075272,1730339433125,-2115.0,0.000525,120]
[341075273,1730339433134,-154.43,0.00052748,2]
[341075274,1730339433144,-891.03832891,0.00052924,120]
[341075275,1730339433153,-174.2,0.00052945,2]
[341075276,1730339433162,-548.27,0.00053109,2]
[341075277,1730339433171,-185.25,0.00053289,2]
[341075278,1730339433180,-200.467,0.0005365,2]
[341075279,1730339433190,-57563.55788855,0.0005375,120]
[341075280,1730339433199,-320.0,0.00053861,120]
[341075281,1730339433208,-156.03307551,0.0005389,120]
[341075282,1730339433217,-480.9819,0.000539,2]
[341075283,1730339433226,-9864.5169,0.000539,2]
[341075284,1730339433235,-213.21175459,0.000539,26]
[341075285,1730339433245,-316.88218531,0.000539,2]
[341075286,1730339433255,-165.31677921,0.000539,28]
[341075287,1730339433265,-221.51966875,0.00053989,120]
[341075288,1730339433274,-728.45,0.0005399,2]
[341075289,1730339433284,-728.45,0.0005399,2]
[341075290,1730339433294,-728.45,0.0005399,2]
[341075291,1730339433304,-728.45,0.0005399,2]
[341075292,1730339433313,-728.45,0.0005399,2]
[341075293,1730339433323,-163.38245857,0.0005399,2]
[341075294,1730339433333,-285.25901814,0.00053999,120]
[341075295,1730339433342,-199.20121829,0.00053999,120]
[341075296,1730339433352,-1000.0,0.00053999,120]
[341075297,1730339433362,-196.52629257,0.00053999,120]
[341075298,1730339433372,-270.99328621,0.00053999,120]
[341075299,1730339433381,-225085.34177331,0.00054,120]
[341075310,1730339440101,-173.57,0.00053762,2]
[341075311,1730339440110,-368.26559901,0.00054,120]
[341075312,1730339440121,-429.92721626,0.00054,120]
[341075316,1730339440755,-12966.56695688,0.00054,120]
[341075329,1730339443231,-528.58124952,0.00054,120]
[341075330,1730339443448,-22470.48312536,0.00054,120]
[341075361,1730339446088,-1529.12982626,0.00054,120]
[341075363,1730339446099,-520.00001,0.00054,120]
[341075364,1730339446448,-7405.91550632,0.00054,120]
[341075365,1730339446459,-3115.84928,0.00054,120]
[341075366,1730339461202,300.0,0.00019725,2]
[341075371,1730339866853,158.54,0.00015342,2]
[341075380,1730340518235,150.0,0.00021,3]
[341075384,1730340632178,-300.0,0.000255,2]
[341075385,1730340632187,-193.19722821,0.00043795,2]
[341075386,1730340632198,-6.80277179,0.00043795,2]
[341075387,1730340632207,-200.0,0.00043811,2]
[341075388,1730340632216,-44.55184319,0.0004384,2]
[341075389,1730340632227,-155.44815681,0.0004384,2]
[341075390,1730340632236,-156.0,0.00044084,4]
[341075391,1730340632245,-65.61397482,0.00044085,120]
[341075392,1730340632256,-434.38602518,0.00044085,120]
[341075393,1730340632264,-184.527978,0.00044085,120]
[341075394,1730340632275,-105.73769173,0.00044085,120]
[341075395,1730340632284,-359.58012969,0.00044085,120]
[341075396,1730340632293,-500.0,0.00044085,120]
[341075397,1730340632302,-500.0,0.00044085,120]
[341075398,1730340632311,-500.0,0.00044085,120]
[341075399,1730340632319,-500.0,0.00044085,120]
[341075400,1730340632328,-500.0,0.00044085,120]
[341075401,1730340632337,-500.0,0.00044085,120]
[341075402,1730340632346,-500.0,0.00044085,120]
[341075403,1730340632359,-500.0,0.00044085,120]
[341075404,1730340632371,-500.0,0.00044085,120]
[341075405,1730340632381,-500.0,0.00044085,120]
[341075406,1730340632390,-500.0,0.00044085,120]
[341075407,1730340632399,-388.0988,0.00044085,120]
[341075408,1730340632409,-150.0,0.000441,2]
[341075409,1730340632419,-150.99,0.000441,2]
[341075410,1730340632428,-5197.69,0.000441,30]
[341075411,1730340632438,-225.48425,0.00044124,14]
[341075412,1730340632448,-700.0,0.00044137,16]
[341075413,1730340632457,-700.0,0.00044137,16]
[341075414,1730340632466,-700.0,0.00044137,16]
[341075415,1730340632475,-700.0,0.00044137,16]
[341075416,1730340632484,-700.0,0.00044137,16]
[341075417,1730340632492,-257.11,0.000463,7]
[341075418,1730340632501,-2206.0,0.00046397,2]
[341075419,1730340632510,-4000.39,0.000482,7]
[341075420,1730340632519,-10000.99,0.000485,90]
[341075421,1730340632529,-438.61,0.00048908,2]
[341075422,1730340632538,-1930.71,0.00048952,7]
[341075423,1730340632547,-250.0,0.00049114,120]
[341075424,1730340632556,-225.48425,0.00049252,14]
[341075425,1730340632565,-1500.0,0.000493,2]
[341075427,1730340632574,-700.0,0.00049315,26]
[341075428,1730340632583,-157.83,0.00049333,120]
[341075429,1730340632592,-2206.0,0.00049397,2]
[341075430,1730340632601,-195.31303577,0.00049554,30]
[341075431,1730340632610,-475.84,0.000497,7]
[341075432,1730340632619,-751.0,0.0005,120]
[341075433,1730340632628,-991.26,0.00050568,7]
[341075434,1730340632637,-150.0,0.00050675,7]
[341075435,1730340632646,-150.0,0.00050732,2]
[341075436,1730340632655,-174.2,0.00050809,2]
[341075437,1730340632664,-1247.99,0.00050809,2]
[341075438,1730340632673,-342.16,0.00050868,2]
[341075439,1730340632683,-500.0,0.00050868,2]
[341075440,1730340632692,-250.0,0.0005088,120]
[341075441,1730340632702,-500.0,0.00050895,2]
[341075442,1730340632712,-381.83,0.000509,2]
[341075443,1730340632728,-192.0,0.00050902,120]
[341075444,1730340632737,-162.17,0.00050918,2]
[341075445,1730340632746,-438.61,0.00051172,2]
[341075446,1730340632756,-482.5,0.00051351,7]
[341075447,1730340632765,-154.43,0.00051651,2]
[341075448,1730340632774,-190.0,0.00052,120]
[341075449,1730340632783,-4842.76347795,0.00052,10]
[341075450,1730340632795,-157.23652205,0.00052,10]
[341075451,1730340632803,-627.10698881,0.000521,2]
[341075452,1730340632815,-2372.89301119,0.000521,2]
[341075453,1730340632824,-1500.0,0.000521,2]
[341075454,1730340632834,-197.11,0.00052158,2]
[341075455,1730340632843,-163.43,0.00052462,2]
[341075456,1730340632853,-808.0,0.00052483,120]
[341075457,1730340632862,-349.746,0.0005256,96]
[341075458,1730340632871,-1417.98929457,0.000528,60]
[341075459,1730340632880,-153.29,0.00053379,2]
[341075460,1730340632890,-153.29,0.00053394,2]
[341075461,1730340632899,-153.29,0.00053408,2]
[341075462,1730340632908,-153.29,0.00053423,2]
[341075463,1730340632917,-438.61,0.00053436,2]
[341075464,1730340632926,-153.29,0.00053438,2]
[341075465,1730340632935,-153.29,0.00053453,2]
[341075466,1730340632944,-153.29,0.00053468,2]
[341075467,1730340632953,-153.29,0.00053482,2]
[341075468,1730340632962,-153.29,0.00053497,2]
[341075469,1730340632971,-153.29,0.00053512,2]
[341075470,1730340632980,-153.29,0.00053527,2]
[341075471,1730340632990,-153.29,0.00053542,2]
[341075472,1730340632999,-153.29,0.00053557,2]
[341075473,1730340633008,-153.29,0.00053571,2]
[341075474,1730340633017,-153.29,0.00053586,2]
[341075475,1730340633026,-153.29,0.00053601,2]
[341075476,1730340633035,-153.29,0.00053616,2]
[341075477,1730340633045,-153.29,0.00053631,2]
[341075478,1730340633054,-153.29,0.00053646,2]
[341075479,1730340633063,-1870.0932,0.0005365,2]
[341075480,1730340633072,-150.0,0.00053702,7]
[341075481,1730340633081,-150.0,0.00053707,7]
[341075482,1730340633091,-150.0,0.00053785,7]
[341075483,1730340633100,-0.55291528,0.000538,2]
[341075484,1730340633112,-1449.32958472,0.000538,2]
[341075485,1730340633121,-404.48193247,0.000538,5]
[341075486,1730340633132,-962.48232656,0.000538,5]
[341075487,1730340633141,-1164.63875542,0.000538,5]
[341075488,1730340633152,-202.3255036,0.000538,5]
[341075489,1730340633161,-76.28328049,0.000538,2]
[341075490,1730340633172,-1386.10575894,0.000538,2]
[341075491,1730340633183,-4012.27616057,0.000538,2]
[341075492,1730340633193,-45745.52654622,0.000538,30]
[341075493,1730340633204,-9915.25015491,0.000538,30]
[341075494,1730340633215,-2778.24441209,0.000538,30]
[341075495,1730340633225,-386.78333602,0.000538,30]
[341075496,1730340633237,-1963.7448324,0.000538,30]
[341075497,1730340633247,-6465.39145158,0.000538,30]
[341075498,1730340633264,-643.65934572,0.000538,30]
[341075499,1730340633275,-592.36206145,0.000538,30]
[341075500,1730340633286,-2586.25963293,0.000538,30]
[341075501,1730340633296,-5590.28687281,0.000538,30]
[341075502,1730340633307,-712.02367317,0.000538,30]
[341075503,1730340633318,-1903.25216808,0.000538,30]
[341075504,1730340633334,-478.31588386,0.000538,30]
[341075505,1730340633345,-894.38164469,0.000538,30]
[341075506,1730340633358,-741.8811006,0.000538,30]
[341075507,1730340633372,-1367.57781629,0.000538,30]
[341075508,1730340638296,-576.87446552,0.000538,30]
[341075509,1730340638307,-606.742292,0.000538,30]
[341075510,1730340638319,-421.399227,0.000538,30]
[341075511,1730340638330,-647.09595081,0.000538,30]
[341075512,1730340638341,-12434.35441547,0.000538,30]
[341075513,1730340638435,-45096.60592916,0.000538,30]
[341075514,1730340638447,-6225.07999584,0.000538,30]
[341075515,1730340638459,-779.78410224,0.000538,30]
[341075516,1730340638470,-5644.80746784,0.000538,30]
[341075517,1730340638482,-902.63081299,0.000538,30]
[341075518,1730340638493,-2235.6136962,0.000538,30]
[341075519,1730340638505,-2896.39516468,0.000538,30]
[341075520,1730340638516,-918.803945,0.000538,30]
[341075521,1730340638527,-345.44,0.000538,30]
[341075522,1730340638537,-468.87,0.000538,30]
[341075523,1730340638603,-7299.57939256,0.000538,30]
[341075524,1730340640188,-1450.453016,0.000538,30]
[341075527,1730340640364,-672.43235078,0.000538,30]
[341075528,1730340640376,-1564.25660773,0.000538,30]
[341075529,1730340640387,-1007.52312096,0.000538,30]
[341075530,1730340640398,-5902.37409754,0.000538,30]
[341075531,1730340640410,-90574.25640386,0.000538,30]
[341075532,1730340640419,-165.31677918,0.000538,28]
[341075533,1730340640428,-2621.85935234,0.000538,15]
[341075534,1730340640440,-800.0,0.0005388,2]
[341075535,1730340640450,-980.906,0.0005389,2]
[341075536,1730340640459,-1012.90150356,0.00053899,11]